[Event "Early-Titled-Tuesday-Blitz-August-29-2023"]
[Site "Chess.com"]
[Date "2023.08.29"]
[Round "2"]
[White "jaskol95"]
[Black "AlexanderL"]
[Result "0-1"]
[WhiteElo "2552"]
[BlackElo "2828"]
[TimeControl "180+1"]
[EndTime "8:19:48 PDT"]
[Termination "AlexanderL won by checkmate"]

1. e4 {[%clk 0:03:00.9]} 1... d5 {[%clk 0:02:58.8]} 2. exd5 {[%clk 0:03:01.1]}
2... Nf6 {[%clk 0:02:58.8]} 3. d4 {[%clk 0:03:00.7]} 3... Bg4 {[%clk 0:02:58.1]}
4. f3 {[%clk 0:03:00.9]} 4... Bc8 {[%clk 0:02:57.2]} 5. c4 {[%clk 0:02:59.3]}
5... e6 {[%clk 0:02:53.5]} 6. dxe6 {[%clk 0:02:59.5]} 6... Bxe6 {[%clk
0:02:53.6]} 7. Nc3 {[%clk 0:02:58.3]} 7... Bd6 {[%clk 0:02:45.8]} 8. Be3 {[%clk
0:02:53.1]} 8... O-O {[%clk 0:02:40.4]} 9. Qd2 {[%clk 0:02:44.5]} 9... Re8
{[%clk 0:02:24.5]} 10. O-O-O {[%clk 0:02:44.1]} 10... Bf5 {[%clk 0:02:10.2]} 11.
g4 {[%clk 0:02:41.2]} 11... Bg6 {[%clk 0:02:10.1]} 12. h4 {[%clk 0:02:38.3]}
12... h5 {[%clk 0:02:06]} 13. Bd3 {[%clk 0:02:21.8]} 13... Bxd3 {[%clk
0:01:56.7]} 14. Qxd3 {[%clk 0:02:21.8]} 14... hxg4 {[%clk 0:01:57.1]} 15. Bg5
{[%clk 0:02:14.8]} 15... g3 {[%clk 0:01:55.7]} 16. Nge2 {[%clk 0:01:55.7]} 16...
Nc6 {[%clk 0:01:48.1]} 17. Nd5 {[%clk 0:01:43.5]} 17... Be7 {[%clk 0:01:43.9]}
18. Nxe7+ {[%clk 0:01:43.4]} 18... Qxe7 {[%clk 0:01:42.2]} 19. Nxg3 {[%clk
0:01:32.6]} 19... Rad8 {[%clk 0:01:26.7]} 20. Nf5 {[%clk 0:00:42.4]} 20... Qe2
{[%clk 0:01:12.1]} 21. Qxe2 {[%clk 0:00:34.5]} 21... Rxe2 {[%clk 0:01:09]} 22.
Rhg1 {[%clk 0:00:35]} 22... Kf8 {[%clk 0:01:05.8]} 23. h5 {[%clk 0:00:27.8]}
23... Ne7 {[%clk 0:00:54.4]} 24. Ng3 {[%clk 0:00:16.7]} 24... Rh2 {[%clk
0:00:51.3]} 25. h6 {[%clk 0:00:16.5]} 25... Nfg8 {[%clk 0:00:38]} 26. hxg7+
{[%clk 0:00:16.8]} 26... Ke8 {[%clk 0:00:38.3]} 27. Rde1 {[%clk 0:00:09.4]}
27... f6 {[%clk 0:00:35.1]} 28. Nf5 {[%clk 0:00:06.8]} 28... Kf7 {[%clk
0:00:31.2]} 29. Nxe7 {[%clk 0:00:06.2]} 29... Nxe7 {[%clk 0:00:31.3]} 30. Rxe7+
{[%clk 0:00:05.7]} 30... Kxe7 {[%clk 0:00:30.9]} 31. Bxf6+ {[%clk 0:00:04.9]}
31... Kxf6 {[%clk 0:00:30.4]} 32. g8=Q {[%clk 0:00:05.6]} 32... Rxg8 {[%clk
0:00:30.5]} 33. Rxg8 {[%clk 0:00:06.5]} 33... Rh4 {[%clk 0:00:28.6]} 34. Rd8
{[%clk 0:00:05.8]} 34... Ke7 {[%clk 0:00:27.8]} 35. Rd5 {[%clk 0:00:04.9]} 35...
Rf4 {[%clk 0:00:24.2]} 36. Re5+ {[%clk 0:00:03.1]} 36... Kd7 {[%clk 0:00:24.5]}
37. Re3 {[%clk 0:00:03.2]} 37... Rxd4 {[%clk 0:00:24.6]} 38. b3 {[%clk
0:00:03.9]} 38... Rh4 {[%clk 0:00:24.9]} 39. Kc2 {[%clk 0:00:04.4]} 39... Rh2+
{[%clk 0:00:25.3]} 40. Kb1 {[%clk 0:00:05]} 40... Rf2 {[%clk 0:00:25.5]} 41. Rc3
{[%clk 0:00:04.2]} 41... Kc6 {[%clk 0:00:25]} 42. Rd3 {[%clk 0:00:04.6]} 42...
a5 {[%clk 0:00:24]} 43. a3 {[%clk 0:00:05.1]} 43... Kc5 {[%clk 0:00:22.2]} 44.
Rd5+ {[%clk 0:00:05.2]} 44... Kb6 {[%clk 0:00:22.7]} 45. Rf5 {[%clk 0:00:05.5]}
45... c6 {[%clk 0:00:22.8]} 46. Rf7 {[%clk 0:00:05.8]} 46... Ka6 {[%clk
0:00:18.7]} 47. f4 {[%clk 0:00:05.9]} 47... Kb6 {[%clk 0:00:18]} 48. f5 {[%clk
0:00:06.5]} 48... Kc5 {[%clk 0:00:18.5]} 49. f6 {[%clk 0:00:06.7]} 49... b6
{[%clk 0:00:17.6]} 50. Rf8 {[%clk 0:00:06.8]} 50... Kd4 {[%clk 0:00:18.1]} 51.
f7 {[%clk 0:00:07.1]} 51... Kc3 {[%clk 0:00:18.7]} 52. b4 {[%clk 0:00:05.3]}
52... axb4 {[%clk 0:00:13.2]} 53. axb4 {[%clk 0:00:05.9]} 53... Kb3 {[%clk
0:00:10.6]} 54. Kc1 {[%clk 0:00:05.8]} 54... Kxb4 {[%clk 0:00:08.1]} 55. Kd1
{[%clk 0:00:05.3]} 55... Kc5 {[%clk 0:00:07.8]} 56. Ke1 {[%clk 0:00:05.6]} 56...
Rf6 {[%clk 0:00:07.6]} 57. Ke2 {[%clk 0:00:04.8]} 57... Kxc4 {[%clk 0:00:07.7]}
58. Ke3 {[%clk 0:00:04.8]} 58... c5 {[%clk 0:00:06]} 59. Ke4 {[%clk 0:00:05.3]}
59... b5 {[%clk 0:00:03.9]} 60. Ke5 {[%clk 0:00:05.8]} 60... Rf1 {[%clk
0:00:03.9]} 61. Kd6 {[%clk 0:00:05.6]} 61... b4 {[%clk 0:00:03.9]} 62. Rc8
{[%clk 0:00:05.9]} 62... Rxf7 {[%clk 0:00:03.5]} 63. Rxc5+ {[%clk 0:00:06.4]}
63... Kb3 {[%clk 0:00:04.1]} 64. Kd5 {[%clk 0:00:06.8]} 64... Rd7+ {[%clk
0:00:03.3]} 65. Ke4 {[%clk 0:00:07]} 65... Rd8 {[%clk 0:00:04.1]} 66. Ra5 {[%clk
0:00:07]} 66... Kb2 {[%clk 0:00:04.2]} 67. Ke3 {[%clk 0:00:05.5]} 67... b3
{[%clk 0:00:04.5]} 68. Ra7 {[%clk 0:00:05.5]} 68... Kc2 {[%clk 0:00:04.7]} 69.
Rc7+ {[%clk 0:00:05.4]} 69... Kb1 {[%clk 0:00:05]} 70. Ke2 {[%clk 0:00:05.6]}
70... b2 {[%clk 0:00:05.4]} 71. Ra7 {[%clk 0:00:05.2]} 71... Rd5 {[%clk
0:00:04.5]} 72. Ra8 {[%clk 0:00:04.6]} 72... Kc2 {[%clk 0:00:04.9]} 73. Rc8+
{[%clk 0:00:04.5]} 73... Kb3 {[%clk 0:00:05.3]} 74. Rb8+ {[%clk 0:00:04.9]}
74... Kc3 {[%clk 0:00:05.7]} 75. Rc8+ {[%clk 0:00:05.2]} 75... Kb4 {[%clk
0:00:06.1]} 76. Rb8+ {[%clk 0:00:05.9]} 76... Rb5 {[%clk 0:00:06.3]} 77. Rd8
{[%clk 0:00:05.9]} 77... b1=Q {[%clk 0:00:06.4]} 78. Rd4+ {[%clk 0:00:06.6]}
78... Kc3 {[%clk 0:00:06.8]} 79. Rf4 {[%clk 0:00:04.4]} 79... Re5+ {[%clk
0:00:06.8]} 80. Kf3 {[%clk 0:00:04.4]} 80... Qf1+ {[%clk 0:00:06.9]} 81. Kg3
{[%clk 0:00:04.6]} 81... Rg5+ {[%clk 0:00:07.1]} 82. Kh4 {[%clk 0:00:05]} 82...
Qxf4+ {[%clk 0:00:07.2]} 83. Kh3 {[%clk 0:00:05.2]} 83... Qg3# {[%clk
0:00:08.1]} 0-1

[Event "Early-Titled-Tuesday-Blitz-August-29-2023"]
[Site "Chess.com"]
[Date "2023.08.29"]
[Round "2"]
[White "GAZZAN_3000"]
[Black "mishanick"]
[Result "1/2-1/2"]
[WhiteElo "2672"]
[BlackElo "3120"]
[TimeControl "180+1"]
[EndTime "8:20:24 PDT"]
[Termination "Game drawn by repetition"]

1. d4 {[%clk 0:03:00.9]} 1... Nf6 {[%clk 0:02:56.3]} 2. Nf3 {[%clk 0:03:00.9]}
2... d5 {[%clk 0:02:56]} 3. c4 {[%clk 0:03:01]} 3... e6 {[%clk 0:02:56.1]} 4. g3
{[%clk 0:03:01.1]} 4... Be7 {[%clk 0:02:55.1]} 5. Bg2 {[%clk 0:03:01.6]} 5...
O-O {[%clk 0:02:55.7]} 6. O-O {[%clk 0:03:02.2]} 6... dxc4 {[%clk 0:02:55.8]} 7.
Qc2 {[%clk 0:03:02.6]} 7... a6 {[%clk 0:02:56]} 8. a4 {[%clk 0:03:02.9]} 8...
Bd7 {[%clk 0:02:56.5]} 9. Qxc4 {[%clk 0:03:03.2]} 9... b5 {[%clk 0:02:56.9]} 10.
Qc2 {[%clk 0:03:00.6]} 10... Nc6 {[%clk 0:02:56.8]} 11. axb5 {[%clk 0:02:53.8]}
11... Nb4 {[%clk 0:02:56.4]} 12. Qd1 {[%clk 0:02:49.9]} 12... Bxb5 {[%clk
0:02:56.2]} 13. Nc3 {[%clk 0:02:50.1]} 13... c5 {[%clk 0:02:35.7]} 14. Nxb5
{[%clk 0:02:44.3]} 14... axb5 {[%clk 0:02:35.9]} 15. Rxa8 {[%clk 0:02:42.8]}
15... Qxa8 {[%clk 0:02:36.8]} 16. dxc5 {[%clk 0:02:41.7]} 16... Bxc5 {[%clk
0:02:36.3]} 17. Qb3 {[%clk 0:02:29.8]} 17... Rc8 {[%clk 0:02:33.3]} 18. Bd2
{[%clk 0:02:26.9]} 18... Nbd5 {[%clk 0:02:06.6]} 19. Qxb5 {[%clk 0:02:21.8]}
19... Ne4 {[%clk 0:02:07.1]} 20. e3 {[%clk 0:02:08.7]} 20... Qa7 {[%clk
0:01:56.2]} 21. Qd3 {[%clk 0:02:01.8]} 21... Ndf6 {[%clk 0:01:26.3]} 22. Nd4
{[%clk 0:01:50.7]} 22... Bxd4 {[%clk 0:01:23.4]} 23. exd4 {[%clk 0:01:39.7]}
23... Nxd2 {[%clk 0:01:22.2]} 24. Qxd2 {[%clk 0:01:39.7]} 24... Rd8 {[%clk
0:01:21.3]} 25. Rd1 {[%clk 0:01:35.5]} 25... h5 {[%clk 0:01:19.4]} 26. b4 {[%clk
0:01:28.8]} 26... Qb6 {[%clk 0:01:17.6]} 27. Qc3 {[%clk 0:01:24.2]} 27... Qb5
{[%clk 0:00:56.5]} 28. Bc6 {[%clk 0:01:12.3]} 28... Qe2 {[%clk 0:00:41.6]} 29.
Bf3 {[%clk 0:01:11.9]} 29... Nd5 {[%clk 0:00:27.5]} 30. Qb3 {[%clk 0:00:52.6]}
30... Qb5 {[%clk 0:00:25.7]} 31. Bxd5 {[%clk 0:00:41.3]} 31... Rxd5 {[%clk
0:00:26.6]} 32. h4 {[%clk 0:00:41.1]} 32... g6 {[%clk 0:00:19.4]} 33. Qc3 {[%clk
0:00:24.8]} 33... Qd7 {[%clk 0:00:19.1]} 34. Rb1 {[%clk 0:00:18.5]} 34... Kh7
{[%clk 0:00:10.8]} 35. Qf3 {[%clk 0:00:16.7]} 35... Kg7 {[%clk 0:00:10.2]} 36.
Qe2 {[%clk 0:00:16.4]} 36... Rb5 {[%clk 0:00:06.7]} 37. Kh2 {[%clk 0:00:12.9]}
37... Qb7 {[%clk 0:00:07]} 38. Qc4 {[%clk 0:00:11.1]} 38... Kg8 {[%clk
0:00:07.1]} 39. Qc3 {[%clk 0:00:10]} 39... Qe4 {[%clk 0:00:06.1]} 40. Rb2 {[%clk
0:00:08.7]} 40... Qd5 {[%clk 0:00:06.4]} 41. Qd3 {[%clk 0:00:07.9]} 41... e5
{[%clk 0:00:06.7]} 42. Rd2 {[%clk 0:00:06.6]} 42... e4 {[%clk 0:00:07.1]} 43.
Qc3 {[%clk 0:00:06.8]} 43... Kh7 {[%clk 0:00:05.7]} 44. Rb2 {[%clk 0:00:06.8]}
44... Qf5 {[%clk 0:00:04]} 45. Qb3 {[%clk 0:00:06.9]} 45... g5 {[%clk 0:00:04]}
46. hxg5 {[%clk 0:00:06.7]} 46... Kg6 {[%clk 0:00:03.6]} 47. Qe3 {[%clk
0:00:07.2]} 47... Qd5 {[%clk 0:00:02.2]} 48. Qf4 {[%clk 0:00:07.3]} 48... Qxd4
{[%clk 0:00:02.8]} 49. Re2 {[%clk 0:00:06]} 49... Rf5 {[%clk 0:00:02.1]} 50. Qe3
{[%clk 0:00:05.7]} 50... Qxb4 {[%clk 0:00:02.2]} 51. Qxe4 {[%clk 0:00:06]} 51...
Qxe4 {[%clk 0:00:02.5]} 52. Rxe4 {[%clk 0:00:06.2]} 52... Rxf2+ {[%clk
0:00:03.3]} 53. Kh3 {[%clk 0:00:06.9]} 53... Kxg5 {[%clk 0:00:04]} 54. Re5+
{[%clk 0:00:07.4]} 54... Rf5 {[%clk 0:00:04.4]} 55. Re8 {[%clk 0:00:07.8]} 55...
Rf3 {[%clk 0:00:04.1]} 56. Rg8+ {[%clk 0:00:08.2]} 56... Kh6 {[%clk 0:00:04.4]}
57. Kg2 {[%clk 0:00:08.5]} 57... Rb3 {[%clk 0:00:04]} 58. Rc8 {[%clk 0:00:08.9]}
58... Ra3 {[%clk 0:00:03.8]} 59. Kh3 {[%clk 0:00:09]} 59... Kg6 {[%clk
0:00:03.8]} 60. Rc5 {[%clk 0:00:09.1]} 60... Rb3 {[%clk 0:00:03.9]} 61. Kg2
{[%clk 0:00:09.4]} 61... f6 {[%clk 0:00:04.4]} 62. Kh3 {[%clk 0:00:09.6]} 62...
Re3 {[%clk 0:00:04.7]} 63. Kg2 {[%clk 0:00:10]} 63... Re5 {[%clk 0:00:05.1]} 64.
Rc4 {[%clk 0:00:10.5]} 64... Kg5 {[%clk 0:00:05.4]} 65. Rb4 {[%clk 0:00:11.1]}
65... Re3 {[%clk 0:00:05]} 66. Ra4 {[%clk 0:00:10.5]} 66... Rd3 {[%clk
0:00:05.1]} 67. Ra5+ {[%clk 0:00:10.6]} 67... f5 {[%clk 0:00:05.3]} 68. Ra4
{[%clk 0:00:10.9]} 68... Re3 {[%clk 0:00:05.9]} 69. Ra8 {[%clk 0:00:11]} 69...
Re6 {[%clk 0:00:05.2]} 70. Rg8+ {[%clk 0:00:10.8]} 70... Rg6 {[%clk 0:00:05.8]}
71. Ra8 {[%clk 0:00:11.5]} 71... Rg7 {[%clk 0:00:06.2]} 72. Kf3 {[%clk
0:00:11.6]} 72... Rg6 {[%clk 0:00:05.5]} 73. Rb8 {[%clk 0:00:12]} 73... Ra6
{[%clk 0:00:04.4]} 74. Rg8+ {[%clk 0:00:12]} 74... Kf6 {[%clk 0:00:05.1]} 75.
Rc8 {[%clk 0:00:12.2]} 75... Ra3+ {[%clk 0:00:05]} 76. Kg2 {[%clk 0:00:12.6]}
76... Ke5 {[%clk 0:00:05]} 77. Rh8 {[%clk 0:00:12.3]} 77... Ra2+ {[%clk
0:00:04.6]} 78. Kf3 {[%clk 0:00:11.8]} 78... Rh2 {[%clk 0:00:04.9]} 79. Re8+
{[%clk 0:00:11]} 79... Kf6 {[%clk 0:00:05.4]} 80. Rf8+ {[%clk 0:00:11.6]} 80...
Ke6 {[%clk 0:00:05.9]} 81. Re8+ {[%clk 0:00:11.6]} 81... Kf7 {[%clk 0:00:06.4]}
82. Ra8 {[%clk 0:00:12]} 82... Rh1 {[%clk 0:00:06.9]} 83. Ra7+ {[%clk
0:00:12.4]} 83... Kg6 {[%clk 0:00:07.2]} 84. Ra8 {[%clk 0:00:12.9]} 84... Rf1+
{[%clk 0:00:07.5]} 85. Kg2 {[%clk 0:00:13.4]} 85... Re1 {[%clk 0:00:07.7]} 86.
Rg8+ {[%clk 0:00:13.8]} 86... Kf6 {[%clk 0:00:07.6]} 87. Rh8 {[%clk 0:00:13.5]}
87... Re2+ {[%clk 0:00:06.1]} 88. Kh3 {[%clk 0:00:11]} 88... Kg6 {[%clk
0:00:05.9]} 89. Rg8+ {[%clk 0:00:11.3]} 89... Kh6 {[%clk 0:00:02.6]} 90. Rh8+
{[%clk 0:00:11.5]} 90... Kg5 {[%clk 0:00:02.8]} 91. Rg8+ {[%clk 0:00:11.9]}
91... Kf6 {[%clk 0:00:03.4]} 92. Rh8 {[%clk 0:00:12.5]} 92... Re1 {[%clk
0:00:03.6]} 93. Kg2 {[%clk 0:00:12.2]} 93... Kg6 {[%clk 0:00:03.3]} 94. Rg8+
{[%clk 0:00:12.3]} 94... Kh6 {[%clk 0:00:03]} 95. Rh8+ {[%clk 0:00:12.5]} 95...
Kg5 {[%clk 0:00:03.2]} 96. Rg8+ {[%clk 0:00:12.9]} 96... Kf6 {[%clk 0:00:03.8]}
97. Rh8 {[%clk 0:00:13.3]} 1/2-1/2

[Event "Early-Titled-Tuesday-Blitz-August-29-2023"]
[Site "Chess.com"]
[Date "2023.08.29"]
[Round "2"]
[White "bubeliang"]
[Black "NovikovaGalina"]
[Result "1-0"]
[WhiteElo "2646"]
[BlackElo "2395"]
[TimeControl "180+1"]
[EndTime "8:20:33 PDT"]
[Termination "bubeliang won on time"]

1. e4 {[%clk 0:03:00.9]} 1... e6 {[%clk 0:02:59.8]} 2. d4 {[%clk 0:03:00.2]}
2... d5 {[%clk 0:03:00.7]} 3. e5 {[%clk 0:03:01.1]} 3... c5 {[%clk 0:03:00.5]}
4. c3 {[%clk 0:02:59.6]} 4... Nc6 {[%clk 0:03:01.1]} 5. Nf3 {[%clk 0:02:57.9]}
5... Bd7 {[%clk 0:03:01.7]} 6. Be2 {[%clk 0:02:57.3]} 6... Qc7 {[%clk
0:03:02.3]} 7. O-O {[%clk 0:02:56.8]} 7... f6 {[%clk 0:03:03]} 8. Bf4 {[%clk
0:02:55.9]} 8... O-O-O {[%clk 0:03:00.5]} 9. Bg3 {[%clk 0:02:54.7]} 9... f5
{[%clk 0:03:00.5]} 10. dxc5 {[%clk 0:02:52.5]} 10... h6 {[%clk 0:02:58.9]} 11.
h4 {[%clk 0:02:51.2]} 11... g5 {[%clk 0:02:58.8]} 12. hxg5 {[%clk 0:02:50.8]}
12... hxg5 {[%clk 0:02:59.7]} 13. Nxg5 {[%clk 0:02:50.8]} 13... Nh6 {[%clk
0:03:00.6]} 14. b4 {[%clk 0:02:46.6]} 14... Be7 {[%clk 0:02:59.4]} 15. Nf3
{[%clk 0:02:44.1]} 15... Rdg8 {[%clk 0:02:57.1]} 16. b5 {[%clk 0:02:42.5]} 16...
Bxc5 {[%clk 0:02:06.9]} 17. bxc6 {[%clk 0:02:37.7]} 17... Bxc6 {[%clk
0:02:07.8]} 18. Nd4 {[%clk 0:02:33.2]} 18... Qf7 {[%clk 0:01:59.4]} 19. Qc1
{[%clk 0:02:22.7]} 19... Ng4 {[%clk 0:01:49]} 20. Nf3 {[%clk 0:01:22.7]} 20...
Qh7 {[%clk 0:01:22.4]} 21. Bh4 {[%clk 0:01:14.7]} 21... Nxf2 {[%clk 0:00:57.2]}
22. Rxf2 {[%clk 0:01:09]} 22... Rg4 {[%clk 0:00:36.7]} 23. Kf1 {[%clk 0:00:46]}
23... Rxh4 {[%clk 0:00:33.2]} 24. Ke1 {[%clk 0:00:44.5]} 24... Bxf2+ {[%clk
0:00:20.5]} 25. Kxf2 {[%clk 0:00:41.7]} 25... Rh1 {[%clk 0:00:21.4]} 26. Qg5
{[%clk 0:00:38.8]} 26... Rg8 {[%clk 0:00:19.9]} 27. Qf6 {[%clk 0:00:36.9]} 27...
Bd7 {[%clk 0:00:18.2]} 28. Na3 {[%clk 0:00:30.5]} 28... Rxa1 {[%clk 0:00:17.2]}
29. Nb5 {[%clk 0:00:30.8]} 29... Bxb5 {[%clk 0:00:15.1]} 30. Bxb5 {[%clk
0:00:28.1]} 30... Kb8 {[%clk 0:00:15.6]} 31. Qxe6 {[%clk 0:00:25.1]} 31... Qg7
{[%clk 0:00:15.5]} 32. Bf1 {[%clk 0:00:20]} 32... Rxa2+ {[%clk 0:00:15.6]} 33.
Ke3 {[%clk 0:00:19.8]} 33... Rd8 {[%clk 0:00:09.8]} 34. Qxf5 {[%clk 0:00:14.9]}
34... Qc7 {[%clk 0:00:09.9]} 35. Bd3 {[%clk 0:00:12]} 35... Qxc3 {[%clk
0:00:09.1]} 36. Kf4 {[%clk 0:00:07.7]} 36... Ra4+ {[%clk 0:00:07.9]} 37. Kg5
{[%clk 0:00:06.2]} 37... Rg8+ {[%clk 0:00:08.2]} 38. Kh6 {[%clk 0:00:03.6]}
38... Qc6+ {[%clk 0:00:08.8]} 39. Qf6 {[%clk 0:00:03.5]} 39... Qc8 {[%clk
0:00:06.4]} 40. Bf5 {[%clk 0:00:02]} 40... Rh8+ {[%clk 0:00:05.7]} 41. Kg5
{[%clk 0:00:02]} 41... Qg8+ {[%clk 0:00:04.2]} 42. Bg6 {[%clk 0:00:02.3]} 42...
Ka8 {[%clk 0:00:03.9]} 43. e6 {[%clk 0:00:02.3]} 43... a6 {[%clk 0:00:04.4]} 44.
Qf7 {[%clk 0:00:02]} 44... Qc8 {[%clk 0:00:03.2]} 45. e7 {[%clk 0:00:01.7]}
45... Rg4+ {[%clk 0:00:03]} 46. Kf6 {[%clk 0:00:02.2]} 46... Rf4+ {[%clk
0:00:02.3]} 47. Kg7 {[%clk 0:00:02.1]} 47... Rxf7+ {[%clk 0:00:03.2]} 48. Bxf7
{[%clk 0:00:03]} 48... Re8 {[%clk 0:00:03.3]} 49. Bxe8 {[%clk 0:00:02.8]} 49...
Qxe8 {[%clk 0:00:04.2]} 50. Kf6 {[%clk 0:00:03.7]} 50... d4 {[%clk 0:00:04.1]}
51. Nxd4 {[%clk 0:00:03.7]} 51... a5 {[%clk 0:00:04.5]} 52. Ne6 {[%clk
0:00:03.9]} 52... Kb8 {[%clk 0:00:03.1]} 53. Ng7 {[%clk 0:00:04.2]} 53... Qc6+
{[%clk 0:00:03.5]} 54. Kf7 {[%clk 0:00:04.7]} 54... Qd5+ {[%clk 0:00:03.5]} 55.
Kf8 {[%clk 0:00:04.7]} 55... Qd6 {[%clk 0:00:02.5]} 56. Kf7 {[%clk 0:00:04.7]}
56... Qd5+ {[%clk 0:00:02.5]} 57. Kf8 {[%clk 0:00:05]} 57... Qd6 {[%clk
0:00:03]} 58. Kf7 {[%clk 0:00:04.5]} 58... a4 {[%clk 0:00:03.4]} 59. e8=Q+
{[%clk 0:00:04.6]} 59... Ka7 {[%clk 0:00:03.6]} 60. Qxa4+ {[%clk 0:00:05.1]}
60... Kb8 {[%clk 0:00:03.1]} 61. Qe8+ {[%clk 0:00:05.1]} 61... Ka7 {[%clk
0:00:03.4]} 62. Qe3+ {[%clk 0:00:05.4]} 62... Kb8 {[%clk 0:00:03.4]} 63. Nf5
{[%clk 0:00:04.2]} 63... Qd5+ {[%clk 0:00:03.5]} 64. Kf6 {[%clk 0:00:04.4]}
64... Qc6+ {[%clk 0:00:03.6]} 65. Qe6 {[%clk 0:00:04]} 65... Qxg2 {[%clk
0:00:04.5]} 66. Qe8+ {[%clk 0:00:03.2]} 66... Ka7 {[%clk 0:00:05.1]} 67. Qa4+
{[%clk 0:00:03.2]} 67... Kb8 {[%clk 0:00:05.8]} 68. Qf4+ {[%clk 0:00:03.8]}
68... Ka7 {[%clk 0:00:06]} 69. Nd6 {[%clk 0:00:04.5]} 69... Qc6 {[%clk
0:00:05.8]} 70. Ke7 {[%clk 0:00:05]} 70... Kb6 {[%clk 0:00:04.9]} 71. Qb4+
{[%clk 0:00:04.7]} 71... Kc7 {[%clk 0:00:05]} 72. Qa5+ {[%clk 0:00:04.9]} 72...
Kb8 {[%clk 0:00:03.7]} 73. Qd8+ {[%clk 0:00:04.7]} 73... Ka7 {[%clk 0:00:04.4]}
74. Nc8+ {[%clk 0:00:05.1]} 74... Ka6 {[%clk 0:00:04]} 75. Qd3+ {[%clk
0:00:04.8]} 75... Qb5 {[%clk 0:00:03.5]} 76. Qg6+ {[%clk 0:00:04.7]} 76... Ka5
{[%clk 0:00:02.3]} 77. Nd6 {[%clk 0:00:04.2]} 77... Qb4 {[%clk 0:00:03.2]} 78.
Qf5+ {[%clk 0:00:03]} 78... b5 {[%clk 0:00:03.1]} 79. Qc8 {[%clk 0:00:02.8]}
79... Ka4 {[%clk 0:00:03.3]} 80. Qa8+ {[%clk 0:00:02.1]} 80... Kb3 {[%clk
0:00:04.2]} 81. Qf3+ {[%clk 0:00:02.5]} 81... Qc3 {[%clk 0:00:04.2]} 82. Qd5+
{[%clk 0:00:02.9]} 82... Ka4 {[%clk 0:00:03.7]} 83. Qxb5+ {[%clk 0:00:02.9]}
83... Ka3 {[%clk 0:00:03.5]} 84. Nc4+ {[%clk 0:00:03.6]} 84... Ka2 {[%clk
0:00:03.3]} 85. Qa4+ {[%clk 0:00:04.2]} 85... Kb1 {[%clk 0:00:03.3]} 86. Qb5+
{[%clk 0:00:04.7]} 86... Kc2 {[%clk 0:00:03.4]} 87. Nd6 {[%clk 0:00:04.9]} 87...
Qe3+ {[%clk 0:00:02.2]} 88. Kd7 {[%clk 0:00:04.2]} 88... Qd3 {[%clk 0:00:03]}
89. Qc5+ {[%clk 0:00:03.3]} 89... Kd2 {[%clk 0:00:03.5]} 90. Qf2+ {[%clk
0:00:03.3]} 90... Qe2 {[%clk 0:00:03.7]} 91. Ne4+ {[%clk 0:00:03.2]} 91... Kd1
{[%clk 0:00:01.9]} 92. Nc3+ {[%clk 0:00:02.9]} 92... Kd2 {[%clk 0:00:02.8]} 93.
Qxe2+ {[%clk 0:00:01.8]} 93... Kxc3 {[%clk 0:00:03]} 94. Qe6 {[%clk 0:00:02.6]}
94... Kb4 {[%clk 0:00:01.9]} 95. Ke7 {[%clk 0:00:03.5]} 95... Ka5 {[%clk
0:00:02.2]} 96. Kf7 {[%clk 0:00:04.4]} 1-0

[Event "Early-Titled-Tuesday-Blitz-August-29-2023"]
[Site "Chess.com"]
[Date "2023.08.29"]
[Round "3"]
[White "jimmy-schlumpf"]
[Black "Nbk90"]
[Result "1-0"]
[WhiteElo "2400"]
[BlackElo "2113"]
[TimeControl "180+1"]
[EndTime "8:22:47 PDT"]
[Termination "jimmy-schlumpf won by resignation"]

1. Nf3 {[%clk 0:02:59.9]} 1... b6 {[%clk 0:02:59.3]} 2. g3 {[%clk 0:02:59.4]}
2... Bb7 {[%clk 0:02:59.2]} 3. Bg2 {[%clk 0:03:00]} 3... c5 {[%clk 0:02:56.8]}
4. c4 {[%clk 0:02:59.9]} 4... g6 {[%clk 0:02:57]} 5. Nc3 {[%clk 0:02:59.7]} 5...
Bg7 {[%clk 0:02:55.9]} 6. O-O {[%clk 0:03:00.3]} 6... Nf6 {[%clk 0:02:48.4]} 7.
Re1 {[%clk 0:03:00.2]} 7... O-O {[%clk 0:02:37.2]} 8. e4 {[%clk 0:02:59.3]} 8...
d6 {[%clk 0:02:37.8]} 9. d4 {[%clk 0:02:58.3]} 9... cxd4 {[%clk 0:02:36.6]} 10.
Nxd4 {[%clk 0:02:58.9]} 10... Nc6 {[%clk 0:02:36.8]} 11. Nxc6 {[%clk 0:02:55.3]}
11... Bxc6 {[%clk 0:02:36.8]} 12. e5 {[%clk 0:02:55.5]} 1-0

[Event "Early-Titled-Tuesday-Blitz-August-29-2023"]
[Site "Chess.com"]
[Date "2023.08.29"]
[Round "3"]
[White "Mops_2004"]
[Black "Caterpiller35"]
[Result "1-0"]
[WhiteElo "2792"]
[BlackElo "2493"]
[TimeControl "180+1"]
[EndTime "8:23:24 PDT"]
[Termination "Mops_2004 won by resignation"]

1. Nf3 {[%clk 0:03:00.9]} 1... Nf6 {[%clk 0:02:59.9]} 2. g3 {[%clk 0:03:00.9]}
2... e6 {[%clk 0:03:00.3]} 3. Bg2 {[%clk 0:03:01]} 3... d5 {[%clk 0:03:01.2]} 4.
O-O {[%clk 0:03:01.2]} 4... Be7 {[%clk 0:03:02.1]} 5. d3 {[%clk 0:03:01.7]} 5...
O-O {[%clk 0:03:03]} 6. Bf4 {[%clk 0:03:02]} 6... c5 {[%clk 0:03:03.9]} 7. a4
{[%clk 0:03:02.4]} 7... Nc6 {[%clk 0:03:03.8]} 8. e4 {[%clk 0:03:02.6]} 8...
dxe4 {[%clk 0:03:03.3]} 9. dxe4 {[%clk 0:03:02.7]} 9... Nxe4 {[%clk 0:03:03.2]}
10. Ne5 {[%clk 0:03:02.9]} 10... Nxe5 {[%clk 0:03:01.6]} 11. Bxe5 {[%clk
0:03:03.1]} 11... Nf6 {[%clk 0:02:59.6]} 12. Nc3 {[%clk 0:03:03.1]} 12... Qa5
{[%clk 0:02:55.2]} 13. Qe1 {[%clk 0:03:01.9]} 13... Qb4 {[%clk 0:02:38]} 14. a5
{[%clk 0:03:01.1]} 14... Ng4 {[%clk 0:02:31.3]} 15. Ra4 {[%clk 0:02:57.1]} 15...
Qxb2 {[%clk 0:02:31.1]} 16. Rxg4 {[%clk 0:02:56.8]} 16... f6 {[%clk 0:02:28.6]}
17. Nd5 {[%clk 0:02:48.7]} 17... Qxe5 {[%clk 0:02:27.8]} 18. Qxe5 {[%clk
0:02:47.9]} 18... fxe5 {[%clk 0:02:28]} 19. Nxe7+ {[%clk 0:02:48.3]} 19... Kf7
{[%clk 0:02:26.5]} 20. Nxc8 {[%clk 0:02:48.5]} 1-0

[Event "Early-Titled-Tuesday-Blitz-August-29-2023"]
[Site "Chess.com"]
[Date "2023.08.29"]
[Round "3"]
[White "BigAl"]
[Black "albi1999"]
[Result "0-1"]
[WhiteElo "2466"]
[BlackElo "2674"]
[TimeControl "180+1"]
[EndTime "8:24:16 PDT"]
[Termination "albi1999 won by resignation"]

1. Nf3 {[%clk 0:03:00]} 1... Nf6 {[%clk 0:02:56.7]} 2. g3 {[%clk 0:02:59.1]}
2... b6 {[%clk 0:02:54.4]} 3. Bg2 {[%clk 0:02:59.8]} 3... Bb7 {[%clk 0:02:55.3]}
4. O-O {[%clk 0:02:59.8]} 4... c5 {[%clk 0:02:55.7]} 5. d3 {[%clk 0:03:00.5]}
5... d5 {[%clk 0:02:49]} 6. a4 {[%clk 0:02:58]} 6... a6 {[%clk 0:02:47.3]} 7.
Nbd2 {[%clk 0:02:57.1]} 7... g6 {[%clk 0:02:46.9]} 8. e4 {[%clk 0:02:55]} 8...
dxe4 {[%clk 0:02:46]} 9. Ng5 {[%clk 0:02:54.5]} 9... Bg7 {[%clk 0:02:45.5]} 10.
Ngxe4 {[%clk 0:02:53]} 10... Nxe4 {[%clk 0:02:43.7]} 11. dxe4 {[%clk 0:02:50.7]}
11... O-O {[%clk 0:02:43.5]} 12. Qe2 {[%clk 0:02:49]} 12... Nc6 {[%clk
0:02:42.3]} 13. c3 {[%clk 0:02:30.7]} 13... a5 {[%clk 0:02:40.3]} 14. Rd1 {[%clk
0:02:22.1]} 14... Ba6 {[%clk 0:02:39.2]} 15. Qe3 {[%clk 0:02:10.6]} 15... Ne5
{[%clk 0:02:31.3]} 16. f4 {[%clk 0:02:06.9]} 16... Ng4 {[%clk 0:02:24.2]} 17.
Qf3 {[%clk 0:02:07.3]} 17... Bd4+ {[%clk 0:02:23.9]} 18. cxd4 {[%clk 0:01:59.8]}
18... Qxd4+ {[%clk 0:02:24.8]} 19. Kh1 {[%clk 0:01:58.9]} 19... Nf2+ {[%clk
0:02:23.8]} 20. Qxf2 {[%clk 0:01:58.8]} 20... Qxf2 {[%clk 0:02:24.7]} 0-1